fUST/lending_fUST_20250225
["ID","MTS","AMOUNT","RATE_DAILY","PERIOD"]
[354398657,1740471050929,-2402.43,0.00066301,120]
[354398658,1740471050939,-3964.55,0.00066301,120]
[354398659,1740471050948,-500.0,0.00066301,120]
[354398660,1740471050960,-500.0,0.00066301,120]
[354398661,1740471050970,-504.61167363,0.00066301,120]
[354398662,1740471050980,-500.0,0.00066301,120]
[354398663,1740471050990,-2922.96402582,0.00066475,2]
[354398664,1740471050999,-1484.77,0.00066475,120]
[354398665,1740471051008,-500.0,0.00066575,120]
[354398666,1740471051019,-481.4,0.00066575,120]
[354398667,1740471051029,-509.88739545,0.00066575,120]
[354398668,1740471051039,-500.0,0.00066575,120]
[354398669,1740471051050,-1055.85,0.00066575,120]
[354398670,1740471051059,-500.0,0.00066575,120]
[354398671,1740471051069,-317.34,0.00066575,120]
[354398672,1740471051079,-500.0,0.00066575,120]
[354398673,1740471051088,-500.0,0.00066575,120]
[354398674,1740471051098,-500.0,0.00066575,120]
[354398675,1740471051108,-500.0,0.00066575,120]
[354398676,1740471051119,-500.0,0.00066575,120]
[354398677,1740471051129,-500.0,0.00066575,120]
[354398678,1740471051139,-500.0,0.00066575,120]
[354398679,1740471051148,-500.0,0.00066575,120]
[354398680,1740471051159,-500.0,0.00066575,120]
[354398681,1740471051168,-1000.0,0.00066575,20]
[354398682,1740471051178,-677.07,0.00066575,120]
[354398683,1740471051188,-500.0,0.00066575,120]
[354398684,1740471051197,-500.0,0.00066575,120]
[354398685,1740471051207,-511.85755195,0.00066575,120]
[354398686,1740471051216,-513.7744869,0.00066575,120]
[354398687,1740471051226,-1100.03,0.00066575,120]
[354398688,1740471051235,-500.0,0.00066575,120]
[354398689,1740471051245,-521.66,0.00066575,120]
[354398690,1740471051255,-500.0,0.00066575,120]
[354398691,1740471051264,-500.0,0.00066575,120]
[354398692,1740471051274,-507.34246424,0.00066575,120]
[354398693,1740471051283,-212.93320502,0.00066575,2]
[354398694,1740471051294,-500.0,0.00066575,120]
[354398695,1740471051304,-600.0,0.00066575,120]
[354398696,1740471051314,-500.0,0.00066575,120]
[354398697,1740471051323,-500.0,0.00066575,120]
[354398698,1740471051334,-500.0,0.00066575,120]
[354398699,1740471051343,-500.0,0.00066575,120]
[354398700,1740471051353,-500.0,0.00066575,120]
[354398701,1740471051362,-500.0,0.00066575,120]
[354398702,1740471051372,-500.0,0.00066575,120]
[354398703,1740471051381,-500.0,0.00066575,120]
[354398704,1740471051391,-500.0,0.00066575,120]
[354398705,1740471051401,-500.0,0.00066575,120]
[354398706,1740471051412,-500.0,0.00066575,120]
[354398707,1740471051422,-500.0,0.00066575,120]
[354398708,1740471051431,-500.99778257,0.00066575,120]
[354398709,1740471051440,-894.27,0.00066575,120]
[354398710,1740471051450,-1169.03,0.00066575,120]
[354398711,1740471051459,-500.0,0.00066575,120]
[354398712,1740471051549,-500.0,0.00066575,120]
[354398713,1740471051560,-500.0,0.00066575,120]
[354398714,1740471051571,-500.0,0.00066575,120]
[354398715,1740471051581,-500.0,0.00066575,120]
[354398716,1740471051591,-500.0,0.00066575,120]
[354398717,1740471051601,-500.0,0.00066575,120]
[354398718,1740471051610,-500.0,0.00066575,120]
[354398719,1740471051619,-505.67,0.00066575,120]
[354398720,1740471051628,-513.99242684,0.00066575,120]
[354398721,1740471051637,-500.0,0.00066575,120]
[354398722,1740471051646,-500.0,0.00066575,120]
[354398723,1740471051656,-500.0,0.00066575,120]
[354398724,1740471051668,-540.82759069,0.00066575,120]
[354398725,1740471051677,-500.0,0.00066575,120]
[354398726,1740471051687,-500.0,0.00066575,120]
[354398727,1740471051696,-500.0,0.00066575,120]
[354398728,1740471051707,-500.0,0.00066575,120]
[354398729,1740471051717,-500.0,0.00066575,120]
[354398730,1740471051727,-500.0,0.00066575,120]
[354398731,1740471051737,-1981.16,0.00066575,120]
[354398732,1740471051747,-500.0,0.00066575,120]
[354398733,1740471051756,-500.0,0.00066575,120]
[354398734,1740471051766,-514.35,0.00066575,120]
[354398735,1740471051775,-500.0,0.00066575,120]
[354398736,1740471051785,-500.0,0.00066575,120]
[354398737,1740471051795,-500.0,0.00066575,120]
[354398738,1740471051805,-500.0,0.00066575,120]
[354398739,1740471051815,-500.0,0.00066575,120]
[354398740,1740471051825,-1786.02,0.00066575,120]
[354398741,1740471051835,-500.0,0.00066575,120]
[354398742,1740471051844,-500.0,0.00066575,120]
[354398743,1740471051856,-500.0,0.00066575,120]
[354398744,1740471051868,-500.0,0.00066575,120]
[354398745,1740471051879,-505.92687796,0.00066575,120]
[354398746,1740471051888,-500.0,0.00066575,120]
[354398747,1740471051898,-503.91736698,0.00066575,120]
[354398748,1740471051911,-500.0,0.00066575,120]
[354398749,1740471051921,-500.0,0.00066575,120]
[354398750,1740471051931,-250.0,0.00066575,120]
[354398751,1740471051940,-500.0,0.00066575,120]
[354398752,1740471051951,-500.0,0.00066575,120]
[354398753,1740471051961,-500.0,0.00066575,120]
[354398754,1740471051971,-500.0,0.00066575,120]
[354398755,1740471051981,-500.0,0.00066575,120]
[354398756,1740471051990,-500.0,0.00066575,120]
[354398757,1740471051999,-500.0,0.00066575,120]
[354398758,1740471052009,-1892.04,0.00066575,120]
[354398759,1740471052019,-698.01,0.00066575,120]
[354398760,1740471052029,-500.0,0.00066575,120]
[354398761,1740471052040,-2560.99,0.00066575,120]
[354398762,1740471052058,-511.06796242,0.00066575,120]
[354398763,1740471052068,-500.0,0.00066575,120]
[354398764,1740471052079,-500.0,0.00066575,120]
[354398765,1740471052089,-500.0,0.00066575,120]
[354398766,1740471052099,-500.0,0.00066575,120]
[354398767,1740471052109,-500.0,0.00066575,120]
[354398768,1740471052119,-500.0,0.00066575,120]
[354398769,1740471052129,-671.79,0.00066575,120]
[354398770,1740471052139,-367.31275642,0.00066575,120]
[354398771,1740471052149,-500.0,0.00066575,120]
[354398772,1740471052161,-578.42,0.00066575,120]
[354398773,1740471052170,-500.0,0.00066575,120]
[354398774,1740471052180,-500.0,0.00066575,120]
[354398775,1740471052189,-500.0,0.00066575,120]
[354398776,1740471052198,-2762.36,0.00066575,120]
[354398777,1740471052207,-500.0,0.00066575,120]
[354398778,1740471052218,-500.0,0.00066575,120]
[354398779,1740471052227,-79977.47,0.00066575,7]
[354398780,1740471052236,-500.0,0.00066575,120]
[354398781,1740471052246,-1276.81,0.00066575,3]
[354398782,1740471052255,-500.0,0.00066575,120]
[354398783,1740471052265,-18901.3,0.00066575,120]
[354398784,1740471052276,-5802.92,0.00066575,120]
[354398785,1740471052285,-500.0,0.00066575,120]
[354398786,1740471052294,-500.0,0.00066575,120]
[354398787,1740471052303,-5319.54,0.00066575,120]
[354398788,1740471052312,-500.0,0.00066575,30]
[354398789,1740471052322,-500.0,0.00066575,120]
[354398790,1740471052332,-500.0,0.00066575,120]
[354398791,1740471052341,-1288.38,0.00066575,120]
[354398792,1740471052349,-500.0,0.00066575,120]
[354398793,1740471052359,-2021.79,0.00066575,120]
[354398794,1740471052368,-500.0,0.00066575,120]
[354398795,1740471052378,-500.0,0.00066575,120]
[354398796,1740471052387,-500.0,0.00066575,120]
[354398797,1740471052396,-500.0,0.00066575,120]
[354398798,1740471052405,-500.0,0.00066575,120]
[354398799,1740471052416,-500.0,0.00066575,120]
[354398800,1740471052425,-500.0,0.00066575,120]
[354398801,1740471052435,-500.0,0.00066575,120]
[354398802,1740471052444,-500.0,0.00066575,120]
[354398803,1740471052454,-500.0,0.00066575,120]
[354398804,1740471052463,-500.0,0.00066575,120]
[354398805,1740471052472,-500.0,0.00066575,120]
[354398806,1740471052480,-500.0,0.00066575,120]
[354398807,1740471052489,-500.0,0.00066575,7]
[354398808,1740471052499,-500.0,0.00066575,120]
[354398809,1740471052508,-500.0,0.00066575,120]
[354398810,1740471052518,-500.0,0.00066575,120]
[354398811,1740471052528,-500.0,0.00066575,120]
[354398812,1740471052538,-500.0,0.00066575,120]
[354398813,1740471052547,-500.0,0.00066575,120]
[354398814,1740471052557,-978.37,0.00066575,120]
[354398815,1740471052568,-500.0,0.00066575,120]
[354398816,1740471052577,-500.0,0.00066575,120]
[354398817,1740471052587,-527.1,0.00066575,120]
[354398818,1740471052596,-500.0,0.00066575,120]
[354398819,1740471052609,-500.0,0.00066575,120]
[354398820,1740471052619,-500.0,0.00066575,120]
[354398821,1740471052628,-500.0,0.00066575,120]
[354398822,1740471052638,-500.0,0.00066575,120]
[354398823,1740471052648,-802.89,0.00066575,120]
[354398824,1740471052659,-500.0,0.00066575,120]
[354398825,1740471052670,-500.0,0.00066575,120]
[354398826,1740471052680,-343.97326887,0.00066575,120]
[354398827,1740471052689,-500.0,0.00066575,120]
[354398828,1740471052699,-1118.64,0.00066575,120]
[354398829,1740471052708,-500.0,0.00066575,120]
[354398830,1740471052717,-503.48,0.00066575,120]
[354398831,1740471052727,-500.0,0.00066575,120]
[354398832,1740471052737,-500.0,0.00066575,120]
[354398833,1740471052746,-844.51,0.00066575,120]
[354398834,1740471052757,-4769.7,0.00066575,120]
[354398835,1740471052767,-520.83,0.00066575,120]
[354398836,1740471052776,-494.03765863,0.00066575,120]
[354398837,1740471052786,-500.0,0.00066575,120]
[354398838,1740471052797,-500.0,0.00066575,120]
[354398839,1740471052806,-500.0,0.00066575,120]
[354398840,1740471052817,-500.0,0.00066575,120]
[354398841,1740471052827,-500.0,0.00066575,120]
[354398842,1740471052837,-2402.43,0.00066575,120]
[354398843,1740471052848,-3964.55,0.00066575,120]
[354398844,1740471052858,-505.75545102,0.00066575,120]
[354398845,1740471052935,-182.92,0.0006681,120]
[354398846,1740471052945,-500.0,0.00066849,120]
[354398847,1740471052957,-500.0,0.00066849,120]
[354398848,1740471052967,-1055.85,0.00066849,120]
[354398849,1740471052976,-500.0,0.00066849,120]
[354398850,1740471052986,-515.66322199,0.00066849,120]
[354398851,1740471052995,-500.0,0.00066849,120]
[354398852,1740471053004,-500.0,0.00066849,120]
[354398853,1740471053014,-500.0,0.00066849,120]
[354398854,1740471053024,-500.0,0.00066849,120]
[354398855,1740471053033,-500.0,0.00066849,120]
[354398856,1740471053042,-500.0,0.00066849,120]
[354398857,1740471053052,-343.3630431,0.00066849,120]
[354398858,1740471053063,-500.0,0.00066849,120]
[354398859,1740471053073,-1000.0,0.00066849,20]
[354398860,1740471053084,-677.07,0.00066849,120]
[354398861,1740471053094,-500.0,0.00066849,120]
[354398862,1740471053104,-1100.03,0.00066849,120]
[354398863,1740471053115,-521.66,0.00066849,120]
[354398864,1740471053124,-500.0,0.00066849,120]
[354398865,1740471053134,-500.0,0.00066849,120]
[354398866,1740471053143,-500.0,0.00066849,120]
[354398867,1740471053153,-600.0,0.00066849,120]
[354398868,1740471053164,-500.0,0.00066849,120]
[354398869,1740471053174,-500.0,0.00066849,120]
[354398870,1740471053185,-500.0,0.00066849,120]
[354398871,1740471053195,-500.0,0.00066849,120]
[354398872,1740471053204,-500.0,0.00066849,120]
[354398873,1740471053214,-500.0,0.00066849,120]
[354398874,1740471053224,-500.0,0.00066849,120]
[354398875,1740471053233,-500.0,0.00066849,120]
[354398876,1740471053243,-500.0,0.00066849,120]
[354398877,1740471053253,-500.0,0.00066849,120]
[354398878,1740471053262,-500.0,0.00066849,120]
[354398879,1740471053271,-894.27,0.00066849,120]
[354398880,1740471053281,-1169.03,0.00066849,120]
[354398881,1740471053290,-326.04070655,0.00066849,120]
[354398882,1740471053300,-500.0,0.00066849,120]
[354398883,1740471053311,-500.0,0.00066849,120]
[354398884,1740471053320,-500.0,0.00066849,120]
[354398885,1740471053329,-500.0,0.00066849,120]
[354398886,1740471053339,-500.0,0.00066849,120]
[354398887,1740471053348,-500.0,0.00066849,120]
[354398888,1740471053357,-505.67,0.00066849,120]
[354398889,1740471053368,-500.0,0.00066849,120]
[354398890,1740471053377,-500.0,0.00066849,120]
[354398891,1740471053387,-500.0,0.00066849,120]
[354398892,1740471053397,-500.0,0.00066849,120]
[354398893,1740471053406,-500.0,0.00066849,120]
[354398894,1740471053417,-500.0,0.00066849,120]
[354398895,1740471053426,-500.0,0.00066849,120]
[354398896,1740471053436,-516.6083598,0.00066849,120]
[354398897,1740471053445,-500.0,0.00066849,120]
[354398898,1740471053456,-1981.16,0.00066849,120]
[354398899,1740471053465,-500.0,0.00066849,120]
[354398900,1740471053475,-500.0,0.00066849,120]
[354398901,1740471053484,-514.35,0.00066849,120]
[354398902,1740471053493,-500.0,0.00066849,120]
[354398903,1740471053502,-500.0,0.00066849,120]
[354398904,1740471053511,-500.0,0.00066849,120]
[354398905,1740471053521,-500.0,0.00066849,120]
[354398906,1740471053531,-500.0,0.00066849,120]
[354398907,1740471053541,-1786.02,0.00066849,120]
[354398908,1740471053550,-500.0,0.00066849,120]
[354398909,1740471053560,-500.0,0.00066849,120]
[354398910,1740471053570,-500.0,0.00066849,120]
[354398911,1740471053579,-500.0,0.00066849,120]
[354398912,1740471053589,-500.0,0.00066849,120]
[354398913,1740471053598,-500.0,0.00066849,120]
[354398914,1740471053607,-250.0,0.00066849,120]
[354398915,1740471053616,-500.0,0.00066849,120]
[354398916,1740471053626,-500.0,0.00066849,120]
[354398917,1740471053637,-500.0,0.00066849,120]
[354398918,1740471053646,-500.0,0.00066849,120]
[354398919,1740471053656,-500.0,0.00066849,120]
[354398920,1740471053666,-500.0,0.00066849,120]
[354398921,1740471053676,-500.0,0.00066849,120]
[354398922,1740471053686,-1892.04,0.00066849,120]
[354398923,1740471053695,-698.01,0.00066849,120]
[354398924,1740471053705,-520.47145173,0.00066849,120]
[354398925,1740471053714,-2560.99,0.00066849,120]
[354398926,1740471053724,-512.93022185,0.00066849,120]
[354398927,1740471053734,-500.0,0.00066849,120]
[354398928,1740471053744,-500.0,0.00066849,120]
[354398929,1740471053754,-500.0,0.00066849,120]
[354398930,1740471053764,-500.0,0.00066849,120]
[354398931,1740471053775,-500.0,0.00066849,120]
[354398932,1740471053785,-671.79,0.00066849,120]
[354398933,1740471053794,-500.0,0.00066849,120]
[354398934,1740471053804,-578.42,0.00066849,120]
[354398935,1740471053814,-500.0,0.00066849,120]
[354398936,1740471053823,-500.0,0.00066849,120]
[354398937,1740471053834,-500.0,0.00066849,120]
[354398938,1740471053843,-2762.36,0.00066849,120]
[354398939,1740471053854,-500.0,0.00066849,120]
[354398940,1740471053869,-500.0,0.00066849,120]
[354398941,1740471053879,-79977.47,0.00066849,7]
[354398942,1740471053890,-500.0,0.00066849,120]
[354398943,1740471053902,-1276.81,0.00066849,3]
[354398944,1740471053914,-500.0,0.00066849,120]
[354398945,1740471053923,-18901.3,0.00066849,120]
[354398946,1740471053933,-5802.92,0.00066849,120]
[354398947,1740471053947,-500.0,0.00066849,120]
[354398948,1740471053957,-500.0,0.00066849,120]
[354398949,1740471053968,-5319.54,0.00066849,120]
[354398950,1740471053978,-500.0,0.00066849,30]
[354398951,1740471053989,-500.0,0.00066849,120]
[354398952,1740471053999,-500.0,0.00066849,120]
[354398953,1740471054009,-1288.38,0.00066849,120]
[354398954,1740471054019,-500.0,0.00066849,120]
[354398955,1740471054028,-2021.79,0.00066849,120]
[354398956,1740471054039,-500.0,0.00066849,120]
[354398957,1740471054049,-500.0,0.00066849,120]
[354398958,1740471054059,-500.0,0.00066849,120]
[354398959,1740471054070,-500.0,0.00066849,120]
[354398960,1740471054079,-500.0,0.00066849,120]
[354398961,1740471054089,-500.0,0.00066849,120]
[354398962,1740471054100,-500.0,0.00066849,120]
[354398963,1740471054110,-514.67971274,0.00066849,120]
[354398964,1740471054120,-500.0,0.00066849,120]
[354398965,1740471054131,-500.0,0.00066849,120]
[354398966,1740471054141,-500.0,0.00066849,120]
[354398967,1740471054218,-500.0,0.00066849,120]
[354398968,1740471054229,-500.0,0.00066849,120]
[354398969,1740471054240,-500.0,0.00066849,7]
[354398970,1740471054250,-500.0,0.00066849,120]
[354398971,1740471054260,-500.0,0.00066849,120]
[354398972,1740471054270,-500.0,0.00066849,120]
[354398973,1740471054280,-500.0,0.00066849,120]
[354398974,1740471054290,-500.0,0.00066849,120]
[354398975,1740471054300,-500.0,0.00066849,120]
[354398976,1740471054310,-978.37,0.00066849,120]
[354398977,1740471054319,-506.96657855,0.00066849,120]
[354398978,1740471054330,-500.0,0.00066849,120]
[354398979,1740471054339,-527.1,0.00066849,120]
[354398980,1740471054349,-500.0,0.00066849,120]
[354398981,1740471054358,-500.0,0.00066849,120]
[354398982,1740471054370,-500.0,0.00066849,120]
[354398983,1740471054378,-500.0,0.00066849,120]
[354398984,1740471054389,-500.0,0.00066849,120]
[354398985,1740471054399,-802.89,0.00066849,120]
[354398986,1740471054410,-500.0,0.00066849,120]
[354398987,1740471054420,-500.0,0.00066849,120]
[354398988,1740471054430,-500.0,0.00066849,120]
[354398989,1740471054439,-1118.64,0.00066849,120]
[354398990,1740471054449,-500.0,0.00066849,120]
[354398991,1740471054459,-500.0,0.00066849,120]
[354398992,1740471054469,-844.51,0.00066849,120]
[354398993,1740471054478,-4769.7,0.00066849,120]
[354398994,1740471054488,-520.83,0.00066849,120]
[354398995,1740471054497,-303.51921138,0.00066849,120]
[354398996,1740471054507,-500.0,0.00066849,120]
[354398997,1740471054516,-476.0,0.00066849,120]
[354398998,1740471054527,-500.0,0.00066849,120]
[354398999,1740471054537,-2402.43,0.00066849,120]
[354399000,1740471054546,-3964.55,0.00066849,120]
[354399001,1740471054556,-19601.91606613,0.00067,3]
[354399002,1740471054565,-500.0,0.00067123,120]
[354399003,1740471054575,-500.0,0.00067123,120]
[354399004,1740471054584,-1055.85,0.00067123,120]
[354399005,1740471054595,-500.0,0.00067123,120]
[354399006,1740471054604,-500.0,0.00067123,120]
[354399007,1740471054614,-505.69988613,0.00067123,120]
[354399008,1740471054623,-500.0,0.00067123,120]
[354399009,1740471054633,-500.0,0.00067123,120]
[354399010,1740471054642,-500.0,0.00067123,120]
[354399011,1740471054651,-500.0,0.00067123,120]
[354399012,1740471054662,-500.0,0.00067123,120]
[354399013,1740471054672,-1000.0,0.00067123,20]
[354399014,1740471054682,-677.07,0.00067123,120]
[354399015,1740471054691,-500.0,0.00067123,120]
[354399016,1740471054700,-1100.03,0.00067123,120]
[354399017,1740471054709,-521.66,0.00067123,120]
[354399018,1740471054718,-500.0,0.00067123,120]
[354399019,1740471054728,-500.0,0.00067123,120]
[354399020,1740471054738,-500.0,0.00067123,120]
[354399021,1740471054747,-625.04,0.00067123,120]
[354399022,1740471054757,-500.0,0.00067123,120]
[354399023,1740471054767,-500.0,0.00067123,120]
[354399024,1740471054777,-500.0,0.00067123,120]
[354399025,1740471054787,-579.15425206,0.00067123,120]
[354399026,1740471054797,-500.0,0.00067123,120]
[354399027,1740471054806,-500.0,0.00067123,120]
[354399028,1740471054815,-500.0,0.00067123,120]
[354399029,1740471054825,-500.0,0.00067123,120]
[354399030,1740471054836,-500.0,0.00067123,120]
[354399031,1740471054846,-500.0,0.00067123,120]
[354399032,1740471054856,-500.0,0.00067123,120]
[354399033,1740471054866,-894.27,0.00067123,120]
[354399034,1740471054877,-1169.03,0.00067123,120]
[354399035,1740471054887,-500.0,0.00067123,120]
[354399036,1740471054897,-500.0,0.00067123,120]
[354399037,1740471054907,-500.0,0.00067123,120]
[354399038,1740471054918,-500.0,0.00067123,120]
[354399039,1740471054929,-505.67,0.00067123,120]
[354399040,1740471054941,-500.0,0.00067123,120]
[354399041,1740471054951,-500.0,0.00067123,120]
[354399042,1740471054962,-500.0,0.00067123,120]
[354399043,1740471054971,-500.0,0.00067123,120]
[354399044,1740471054981,-500.0,0.00067123,120]
[354399045,1740471054991,-500.0,0.00067123,120]
[354399046,1740471055000,-500.0,0.00067123,120]
[354399047,1740471055009,-500.0,0.00067123,120]
[354399048,1740471055019,-1981.16,0.00067123,120]
[354399049,1740471055028,-500.0,0.00067123,120]
[354399050,1740471055038,-500.0,0.00067123,120]
[354399051,1740471055049,-514.35,0.00067123,120]
[354399052,1740471055059,-500.0,0.00067123,120]
[354399053,1740471055068,-500.0,0.00067123,120]
[354399054,1740471055078,-500.0,0.00067123,120]
[354399055,1740471055088,-500.0,0.00067123,120]
[354399056,1740471055097,-541.0478223,0.00067123,120]
[354399057,1740471055106,-1786.02,0.00067123,120]
[354399058,1740471055116,-500.0,0.00067123,120]
[354399059,1740471055126,-500.0,0.00067123,120]
[354399060,1740471055136,-500.0,0.00067123,120]
[354399061,1740471055147,-398.31094337,0.00067123,120]
[354399062,1740471055156,-500.0,0.00067123,120]
[354399063,1740471055168,-500.0,0.00067123,120]
[354399064,1740471055177,-250.0,0.00067123,120]
[354399065,1740471055187,-500.0,0.00067123,120]
[354399066,1740471055196,-500.0,0.00067123,120]
[354399067,1740471055206,-500.0,0.00067123,120]
[354399068,1740471055216,-500.0,0.00067123,120]
[354399069,1740471055225,-500.0,0.00067123,120]
[354399070,1740471055235,-500.0,0.00067123,120]
[354399071,1740471055244,-500.0,0.00067123,120]
[354399072,1740471055254,-1892.04,0.00067123,120]
[354399073,1740471055263,-698.01,0.00067123,120]
[354399074,1740471055273,-2560.99,0.00067123,120]
[354399075,1740471055282,-500.0,0.00067123,120]
[354399076,1740471055292,-500.0,0.00067123,120]
[354399077,1740471055301,-500.0,0.00067123,120]
[354399078,1740471055311,-500.0,0.00067123,120]
[354399079,1740471055321,-671.79,0.00067123,120]
[354399080,1740471055392,-500.0,0.00067123,120]
[354399081,1740471055403,-578.42,0.00067123,120]
[354399082,1740471055415,-500.0,0.00067123,120]
[354399083,1740471055424,-500.0,0.00067123,120]
[354399084,1740471055434,-500.0,0.00067123,120]
[354399085,1740471055444,-2762.36,0.00067123,120]
[354399086,1740471055455,-500.0,0.00067123,120]
[354399087,1740471055465,-79977.47,0.00067123,7]
[354399088,1740471055474,-500.0,0.00067123,120]
[354399089,1740471055484,-500.0,0.00067123,120]
[354399090,1740471055494,-1276.81,0.00067123,3]
[354399091,1740471055504,-500.0,0.00067123,120]
[354399092,1740471055514,-18901.3,0.00067123,120]
[354399093,1740471055523,-5802.92,0.00067123,120]
[354399094,1740471055532,-500.0,0.00067123,120]
[354399095,1740471055542,-500.0,0.00067123,120]
[354399096,1740471055552,-5319.54,0.00067123,120]
[354399097,1740471055562,-500.0,0.00067123,120]
[354399098,1740471055571,-500.0,0.00067123,120]
[354399099,1740471055581,-1288.38,0.00067123,120]
[354399100,1740471055591,-500.0,0.00067123,120]
[354399101,1740471055600,-2021.79,0.00067123,120]
[354399102,1740471055611,-567.02671806,0.00067123,120]
[354399103,1740471055621,-500.0,0.00067123,120]
[354399104,1740471055631,-500.0,0.00067123,120]
[354399105,1740471055640,-500.0,0.00067123,120]
[354399106,1740471055650,-500.0,0.00067123,120]
[354399107,1740471055658,-500.0,0.00067123,120]
[354399108,1740471055668,-500.0,0.00067123,120]
[354399109,1740471055678,-500.0,0.00067123,120]
[354399110,1740471055687,-500.0,0.00067123,120]
[354399111,1740471055696,-500.0,0.00067123,120]
[354399112,1740471055706,-500.0,0.00067123,120]
[354399113,1740471055715,-500.0,0.00067123,120]
[354399114,1740471055725,-500.0,0.00067123,7]
[354399115,1740471055736,-500.0,0.00067123,120]
[354399116,1740471055746,-500.0,0.00067123,120]
[354399117,1740471055756,-500.0,0.00067123,120]
[354399118,1740471055766,-500.0,0.00067123,120]
[354399119,1740471055777,-500.0,0.00067123,120]
[354399120,1740471055787,-978.37,0.00067123,120]
[354399121,1740471055798,-500.0,0.00067123,120]
[354399122,1740471055808,-527.1,0.00067123,120]
[354399123,1740471055818,-524.12817267,0.00067123,120]
[354399124,1740471055827,-500.0,0.00067123,120]
[354399125,1740471055836,-500.0,0.00067123,120]
[354399126,1740471055845,-500.0,0.00067123,120]
[354399127,1740471055856,-500.0,0.00067123,120]
[354399128,1740471055867,-802.89,0.00067123,120]
[354399129,1740471055878,-500.0,0.00067123,120]
[354399130,1740471055888,-500.0,0.00067123,120]
[354399131,1740471055899,-1118.64,0.00067123,120]
[354399132,1740471055908,-500.0,0.00067123,120]
[354399133,1740471055922,-500.0,0.00067123,120]
[354399134,1740471055932,-844.51,0.00067123,120]
[354399135,1740471055943,-4769.7,0.00067123,120]
[354399136,1740471055954,-520.83,0.00067123,120]
[354399137,1740471055963,-500.0,0.00067123,120]
[354399138,1740471055972,-2402.43,0.00067123,120]
[354399139,1740471055981,-3964.55,0.00067123,120]
[354399140,1740471055991,-105086.34984504,0.000672,30]
[354399141,1740471056132,-462.83688589,0.000672,30]
[354399142,1740471056256,-668.14563018,0.0006549,30]
[354399143,1740471056268,-1007.66933093,0.0006549,30]
[354399144,1740471056278,-500.0,0.00065753,120]
[354399145,1740471056288,-501.43243371,0.00065753,120]
[354399146,1740471056365,-500.0,0.00065753,120]
[354399147,1740471056377,-500.0,0.00066027,120]
[354399148,1740471056387,-513.85421012,0.00066301,120]
[354399149,1740471056397,-367.12,0.00066575,120]
[354399150,1740471056406,-116460.82326907,0.000672,30]
[354399151,1740471056416,-500.0,0.00067397,120]
[354399152,1740471056426,-500.0,0.00067397,120]
[354399153,1740471056435,-1055.85,0.00067397,120]
[354399154,1740471056444,-500.0,0.00067397,120]
[354399155,1740471056454,-500.0,0.00067397,120]
[354399156,1740471056463,-500.0,0.00067397,120]